fUST/lending_fUST_20250601
["ID","MTS","AMOUNT","RATE_DAILY","PERIOD"]
[363486995,1748737851470,-430.0,0.0001863,2]
[363486996,1748737851480,-151.0,0.0001863,2]
[363486997,1748737851489,-1469.33,0.0001863,2]
[363486998,1748737851499,-523.71,0.0001863,2]
[363486999,1748737851508,-430.0,0.0001863,2]
[363487000,1748737851517,-441.38,0.0001863,2]
[363487001,1748737851530,-1867.23,0.0001863,2]
[363487002,1748737851539,-430.0,0.0001863,2]
[363487003,1748737851549,-695.28,0.0001863,2]
[363487004,1748737851559,-1714.72675326,0.00018831,2]
[363487005,1748737851569,-1433.91928174,0.000189,2]
[363487006,1748737851579,-381.95,0.00018904,2]
[363487007,1748737851588,-430.0,0.00018904,2]
[363487008,1748737851598,-430.0,0.00018904,2]
[363487009,1748737851608,-430.0,0.00018904,2]
[363487010,1748737851618,-253.78,0.00018904,2]
[363487011,1748737851629,-430.0,0.00018904,2]
[363487012,1748737851638,-1500.43,0.00018904,2]
[363487013,1748737851648,-3040.12,0.00018904,2]
[363487014,1748737851658,-977.87,0.00018904,2]
[363487015,1748737851667,-2430.82,0.00018904,2]
[363487016,1748737851676,-549.88,0.00018904,2]
[363487017,1748737851686,-1508.0,0.00018904,2]
[363487018,1748737851696,-687.5,0.00018904,2]
[363487019,1748737851705,-1066.06,0.00018904,2]
[363487020,1748737851715,-430.0,0.00018904,2]
[363487021,1748737851725,-3258.97,0.00018904,2]
[363487022,1748737851736,-430.0,0.00018904,2]
[363487023,1748737851826,-576.42,0.00018904,2]
[363487024,1748737851836,-580.05,0.00018904,2]
[363487025,1748737851845,-505.64,0.00018904,2]
[363487026,1748737851855,-430.0,0.00018904,2]
[363487027,1748737851864,-537.5,0.00018904,2]
[363487028,1748737851874,-430.0,0.00018904,2]
[363487029,1748737851884,-430.0,0.00018904,2]
[363487030,1748737851894,-430.0,0.00018904,2]
[363487031,1748737851903,-430.0,0.00018904,2]
[363487032,1748737851912,-567.0,0.00018904,2]
[363487033,1748737851922,-1008.06,0.00018904,2]
[363487034,1748737851931,-430.0,0.00018904,2]
[363487035,1748737851942,-631.58,0.00018904,2]
[363487036,1748737851952,-430.0,0.00018904,2]
[363487037,1748737851962,-625.45,0.00018904,2]
[363487038,1748737851971,-1312.01,0.00018904,2]
[363487039,1748737851981,-430.0,0.00018904,2]
[363487040,1748737851991,-556.89,0.00018904,2]
[363487041,1748737852001,-430.0,0.00018904,2]
[363487042,1748737852011,-430.0,0.00018904,2]
[363487043,1748737852020,-1020.62,0.00018904,2]
[363487044,1748737852029,-1880.35,0.00018904,2]
[363487045,1748737852039,-430.0,0.00018904,2]
[363487046,1748737852048,-430.0,0.00018904,2]
[363487047,1748737852059,-430.0,0.00018904,2]
[363487048,1748737852069,-1016.78,0.00018904,2]
[363487049,1748737852078,-450.32,0.00018904,2]
[363487050,1748737852088,-592.51,0.00018904,2]
[363487051,1748737852098,-1891.02,0.00018904,2]
[363487052,1748737852109,-430.0,0.00018904,2]
[363487053,1748737852118,-1469.33,0.00018904,2]
[363487054,1748737852128,-523.71,0.00018904,2]
[363487055,1748737852137,-430.0,0.00018904,2]
[363487056,1748737852147,-441.38,0.00018904,2]
[363487057,1748737852156,-1867.23,0.00018904,2]
[363487058,1748737852166,-430.0,0.00018904,2]
[363487059,1748737852175,-695.28,0.00018904,2]
[363487060,1748737852185,-3688.50593336,0.0001901,2]
[363487061,1748737852195,-1714.72675326,0.00019107,2]
[363487062,1748737852205,-430.0,0.00019178,2]
[363487063,1748737852215,-430.0,0.00019178,2]
[363487064,1748737852224,-430.0,0.00019178,2]
[363487065,1748737852235,-430.0,0.00019178,2]
[363487066,1748737852244,-430.0,0.00019178,2]
[363487067,1748737852254,-430.0,0.00019178,2]
[363487068,1748737852264,-430.0,0.00019178,2]
[363487069,1748737852273,-430.0,0.00019178,2]
[363487070,1748737852283,-430.0,0.00019178,2]
[363487071,1748737852293,-430.0,0.00019178,2]
[363487072,1748737852303,-430.0,0.00019178,2]
[363487073,1748737852312,-151.0,0.00019178,2]
[363487074,1748737852322,-598.642325,0.00019178,2]
[363487075,1748737852332,-598.642325,0.00019178,2]
[363487076,1748737852342,-361.63809,0.00019178,2]
[363487077,1748737852351,-361.63809,0.00019178,2]
[363487078,1748737852362,-430.0,0.00019178,2]
[363487079,1748737852372,-430.0,0.00019178,2]
[363487080,1748737852382,-151.0,0.00019178,2]
[363487081,1748737852392,-430.0,0.00019178,2]
[363487082,1748737852401,-1500.43,0.00019178,2]
[363487083,1748737852411,-3040.12,0.00019178,2]
[363487084,1748737852420,-977.87,0.00019178,2]
[363487085,1748737852432,-2430.82,0.00019178,2]
[363487086,1748737852442,-549.88,0.00019178,2]
[363487087,1748737852452,-229.456756,0.00019178,2]
[363487088,1748737852461,-1508.0,0.00019178,2]
[363487089,1748737852471,-687.5,0.00019178,2]
[363487090,1748737852482,-1066.06,0.00019178,2]
[363487091,1748737852493,-151.0,0.00019178,2]
[363487092,1748737852519,-430.0,0.00019178,2]
[363487093,1748737852543,-3258.97,0.00019178,2]
[363487094,1748737852560,-151.0,0.00019178,2]
[363487095,1748737852578,-245.928733,0.00019178,2]
[363487096,1748737852596,-245.928733,0.00019178,2]
[363487097,1748737852616,-430.0,0.00019178,2]
[363487098,1748737852631,-576.42,0.00019178,2]
[363487099,1748737852646,-580.05,0.00019178,2]
[363487100,1748737852663,-505.64,0.00019178,2]
[363487101,1748737852676,-430.0,0.00019178,2]
[363487102,1748737852693,-537.5,0.00019178,2]
[363487103,1748737852709,-430.0,0.00019178,2]
[363487104,1748737852727,-430.0,0.00019178,2]
[363487105,1748737852744,-430.0,0.00019178,2]
[363487106,1748737852757,-430.0,0.00019178,2]
[363487107,1748737852775,-567.0,0.00019178,2]
[363487108,1748737852789,-187.295091,0.00019178,2]
[363487109,1748737852805,-1008.06,0.00019178,2]
[363487110,1748737852820,-187.295091,0.00019178,2]
[363487111,1748737852834,-430.0,0.00019178,2]
[363487112,1748737852848,-631.58,0.00019178,2]
[363487113,1748737852862,-430.0,0.00019178,2]
[363487114,1748737852875,-625.45,0.00019178,2]
[363487115,1748737852889,-1312.01,0.00019178,2]
[363487116,1748737852903,-430.0,0.00019178,2]
[363487117,1748737852916,-556.89,0.00019178,2]
[363487118,1748737852931,-430.0,0.00019178,2]
[363487119,1748737852945,-430.0,0.00019178,2]
[363487120,1748737852961,-1020.62,0.00019178,2]
[363487121,1748737852975,-1880.35,0.00019178,2]
[363487122,1748737852989,-430.0,0.00019178,2]
[363487123,1748737853004,-430.0,0.00019178,2]
[363487124,1748737853019,-430.0,0.00019178,2]
[363487125,1748737853033,-1016.78,0.00019178,2]
[363487126,1748737853046,-450.32,0.00019178,2]
[363487127,1748737853060,-592.51,0.00019178,2]
[363487128,1748737853075,-1891.02,0.00019178,2]
[363487129,1748737853090,-430.0,0.00019178,2]
[363487130,1748737853104,-1469.33,0.00019178,2]
[363487131,1748737853118,-523.71,0.00019178,2]
[363487132,1748737853132,-430.0,0.00019178,2]
[363487133,1748737853146,-441.38,0.00019178,2]
[363487134,1748737853160,-1867.23,0.00019178,2]
[363487135,1748737853176,-430.0,0.00019178,2]
[363487136,1748737853190,-695.28,0.00019178,2]
[363487137,1748737853200,-500.0,0.00019178,2]
[363487138,1748737853210,-500.0,0.00019178,2]
[363487139,1748737853220,-163.862003,0.00019178,2]
[363487140,1748737853231,-1714.72675326,0.00019383,2]
[363487141,1748737853243,-3737.87,0.00019407,2]
[363487142,1748737853252,-430.0,0.00019452,2]
[363487143,1748737853262,-524.53639509,0.00019452,2]
[363487144,1748737853272,-430.0,0.00019452,2]
[363487145,1748737853282,-430.0,0.00019452,2]
[363487146,1748737853292,-1500.43,0.00019452,2]
[363487147,1748737853302,-3040.12,0.00019452,2]
[363487148,1748737853312,-977.87,0.00019452,2]
[363487149,1748737853322,-2430.82,0.00019452,2]
[363487150,1748737853332,-549.88,0.00019452,2]
[363487151,1748737853342,-1508.0,0.00019452,2]
[363487152,1748737853352,-687.5,0.00019452,2]
[363487153,1748737853363,-1066.06,0.00019452,2]
[363487154,1748737853374,-430.0,0.00019452,2]
[363487155,1748737853385,-3258.97,0.00019452,2]
[363487156,1748737853395,-430.0,0.00019452,2]
[363487157,1748737853405,-576.42,0.00019452,2]
[363487158,1748737853415,-580.05,0.00019452,2]
[363487159,1748737853426,-505.64,0.00019452,2]
[363487160,1748737853436,-430.0,0.00019452,2]
[363487161,1748737853645,-537.5,0.00019452,2]
[363487162,1748737853664,-430.0,0.00019452,2]
[363487163,1748737853678,-430.0,0.00019452,2]
[363487164,1748737853688,-430.0,0.00019452,2]
[363487165,1748737853698,-567.0,0.00019452,2]
[363487166,1748737853716,-1008.06,0.00019452,2]
[363487167,1748737853726,-430.0,0.00019452,2]
[363487168,1748737853738,-631.58,0.00019452,2]
[363487169,1748737853748,-430.0,0.00019452,2]
[363487170,1748737853758,-625.45,0.00019452,2]
[363487171,1748737853768,-1312.01,0.00019452,2]
[363487172,1748737853777,-430.0,0.00019452,2]
[363487173,1748737853786,-556.89,0.00019452,2]
[363487174,1748737853796,-430.0,0.00019452,2]
[363487175,1748737853805,-430.0,0.00019452,2]
[363487176,1748737853815,-1020.62,0.00019452,2]
[363487177,1748737853825,-1880.35,0.00019452,2]
[363487178,1748737853836,-430.0,0.00019452,2]
[363487179,1748737853846,-1016.78,0.00019452,2]
[363487180,1748737853856,-450.32,0.00019452,2]
[363487181,1748737853866,-592.51,0.00019452,2]
[363487182,1748737853876,-1891.02,0.00019452,2]
[363487183,1748737853886,-430.0,0.00019452,2]
[363487184,1748737853895,-1469.33,0.00019452,2]
[363487185,1748737853904,-303.22621731,0.00019452,2]
[363487186,1748737854514,-500.0,0.00016432,2]
[363487187,1748737854524,-500.0,0.00016432,2]
[363487188,1748737854535,-500.0,0.00016432,2]
[363487189,1748737854546,-500.0,0.00016432,2]
[363487190,1748737854555,-500.0,0.00016432,2]
[363487191,1748737854564,-500.0,0.00016432,2]
[363487192,1748737854574,-500.0,0.00016432,2]
[363487193,1748737854584,-500.0,0.00016432,2]
[363487194,1748737854593,-360.01003017,0.00016432,2]
[363487195,1748737854676,-139.98996983,0.00016432,2]
[363487196,1748737854686,-500.0,0.00016432,2]
[363487197,1748737854695,-509.6423226,0.00016432,2]
[363487198,1748737854705,-400.0,0.00016438,2]
[363487199,1748737854715,-430.0,0.00016438,2]
[363487200,1748737854724,-400.0,0.00016438,2]
[363487201,1748737854733,-430.0,0.00016438,2]
[363487202,1748737854744,-430.0,0.00016712,2]
[363487203,1748737854755,-298.925904,0.00016986,2]
[363487204,1748737854764,-430.0,0.00016986,2]
[363487205,1748737854774,-430.0,0.0001726,2]
[363487206,1748737854784,-496.54650798,0.00017534,2]
[363487207,1748737854793,-298.925904,0.00017534,2]
[363487208,1748737854802,-298.925904,0.0001818,2]
[363487209,1748737854812,-270.0,0.00018356,2]
[363487210,1748737854822,-880.32,0.00018356,2]
[363487211,1748737854831,-880.32,0.0001863,2]
[363487212,1748737854841,-880.32,0.00018904,2]
[363487213,1748737854850,-500.0,0.00019178,2]
[363487214,1748737854859,-500.0,0.00019178,2]
[363487215,1748737854868,-500.0,0.00019178,2]
[363487216,1748737854878,-500.0,0.00019178,2]
[363487217,1748737854888,-500.0,0.00019178,2]
[363487218,1748737854898,-211.21434068,0.00019178,2]
[363487219,1748737854909,-500.0,0.00019178,2]
[363487220,1748737854919,-500.0,0.00019178,2]
[363487221,1748737854928,-880.32,0.00019178,2]
[363487222,1748737854937,-298.925904,0.00019178,2]
[363487223,1748737854947,-220.48378269,0.00019452,2]
[363487224,1748737854957,-430.0,0.00019452,2]
[363487225,1748737854967,-441.38,0.00019452,2]
[363487226,1748737854977,-1867.23,0.00019452,2]
[363487227,1748737854987,-533.28,0.00019452,2]
[363487228,1748737854997,-695.28,0.00019452,2]
[363487229,1748737855006,-880.32,0.00019452,2]
[363487230,1748737855016,-151.0,0.000196,2]
[363487231,1748737855026,-587.0,0.00019625,2]
[363487232,1748737855036,-1714.72675326,0.00019659,2]
[363487233,1748737855045,-614.937,0.00019694,2]
[363487234,1748737855055,-177.704,0.00019694,2]
[363487235,1748737855065,-430.0,0.00019726,2]
[363487236,1748737855075,-1211.008584,0.00019726,2]
[363487237,1748737855084,-1211.008584,0.00019726,2]
[363487238,1748737855094,-151.0,0.00019726,2]
[363487239,1748737855103,-151.0,0.00019726,2]
[363487240,1748737855113,-430.0,0.00019726,2]
[363487241,1748737855123,-182.755766,0.00019726,2]
[363487242,1748737855133,-182.755766,0.00019726,2]
[363487243,1748737855142,-3040.12,0.00019726,2]
[363487244,1748737855151,-977.87,0.00019726,2]
[363487245,1748737855161,-2430.82,0.00019726,2]
[363487246,1748737855171,-549.88,0.00019726,2]
[363487247,1748737855182,-1508.0,0.00019726,2]
[363487248,1748737855192,-687.5,0.00019726,2]
[363487249,1748737855202,-1066.06,0.00019726,2]
[363487250,1748737855212,-430.0,0.00019726,2]
[363487251,1748737855222,-3258.97,0.00019726,2]
[363487252,1748737855232,-430.0,0.00019726,2]
[363487253,1748737855244,-576.42,0.00019726,2]
[363487254,1748737855253,-580.05,0.00019726,2]
[363487255,1748737855263,-505.64,0.00019726,2]
[363487256,1748737855273,-430.0,0.00019726,2]
[363487257,1748737855283,-537.5,0.00019726,2]
[363487258,1748737855293,-430.0,0.00019726,2]
[363487259,1748737855303,-521.3,0.00019726,2]
[363487260,1748737855314,-430.0,0.00019726,2]
[363487261,1748737855324,-567.0,0.00019726,2]
[363487262,1748737855334,-1008.06,0.00019726,2]
[363487263,1748737855344,-631.58,0.00019726,2]
[363487264,1748737855355,-430.0,0.00019726,2]
[363487265,1748737855365,-625.45,0.00019726,2]
[363487266,1748737855375,-1312.01,0.00019726,2]
[363487267,1748737855384,-430.0,0.00019726,2]
[363487268,1748737855394,-556.89,0.00019726,2]
[363487269,1748737855403,-430.0,0.00019726,2]
[363487270,1748737855413,-430.0,0.00019726,2]
[363487271,1748737855423,-1020.62,0.00019726,2]
[363487272,1748737855432,-1880.35,0.00019726,2]
[363487273,1748737855442,-430.0,0.00019726,2]
[363487274,1748737855452,-1016.78,0.00019726,2]
[363487275,1748737855462,-450.32,0.00019726,2]
[363487276,1748737855472,-592.51,0.00019726,2]
[363487277,1748737855481,-151.0,0.00019726,2]
[363487278,1748737855492,-151.0,0.00019726,2]
[363487279,1748737855502,-1891.02,0.00019726,2]
[363487280,1748737855512,-448.37737344,0.00019726,2]
[363487281,1748737855523,-151.0,0.00019726,2]
[363487282,1748737855534,-1469.33,0.00019726,2]
[363487283,1748737855545,-523.71,0.00019726,2]
[363487284,1748737855554,-430.0,0.00019726,2]
[363487285,1748737855565,-441.38,0.00019726,2]
[363487286,1748737855574,-1867.23,0.00019726,2]
[363487287,1748737855585,-695.28,0.00019726,2]
[363487288,1748737855596,-880.32,0.00019726,2]
[363487289,1748737855607,-500.0,0.00019845,2]
[363487290,1748737855616,-500.0,0.00019845,2]
[363487291,1748737855626,-500.0,0.00019845,2]
[363487292,1748737855636,-500.0,0.00019845,2]
[363487293,1748737855646,-500.0,0.00019845,2]
[363487294,1748737855656,-500.0,0.00019845,2]
[363487295,1748737855666,-600.0,0.00019845,2]
[363487296,1748737855675,-500.0,0.00019845,2]
[363487297,1748737855686,-3688.50593336,0.000199,2]
[363487298,1748737855695,-1714.72675326,0.00019934,2]
[363487299,1748737855707,-600.0,0.00019964,2]
[363487300,1748737855718,-151.0,0.00019999,2]
[363487301,1748737855729,-155.070364,0.00019999,2]
[363487302,1748737855739,-155.070364,0.00019999,2]
[363487303,1748737855748,-151.0,0.00019999,2]
[363487304,1748737855758,-430.0,0.0002,2]
[363487305,1748737855768,-163.99476167,0.0002,2]
[363487306,1748737855778,-3040.12,0.0002,2]
[363487307,1748737855788,-977.87,0.0002,2]
[363487308,1748737855798,-2430.82,0.0002,2]
[363487309,1748737855808,-549.88,0.0002,2]
[363487310,1748737855820,-1508.0,0.0002,2]
[363487311,1748737855831,-687.5,0.0002,2]
[363487312,1748737855840,-1066.06,0.0002,2]
[363487313,1748737855851,-430.0,0.0002,2]
[363487314,1748737855861,-3258.97,0.0002,2]
[363487315,1748737855871,-430.0,0.0002,2]
[363487316,1748737855881,-576.42,0.0002,2]
[363487317,1748737855891,-580.05,0.0002,2]
[363487318,1748737855901,-505.64,0.0002,2]
[363487319,1748737855911,-430.0,0.0002,2]
[363487320,1748737855921,-537.5,0.0002,2]
[363487321,1748737855931,-430.0,0.0002,2]
[363487322,1748737855941,-430.0,0.0002,2]
[363487323,1748737855952,-567.0,0.0002,2]
[363487324,1748737855962,-1008.06,0.0002,2]
[363487325,1748737855972,-631.58,0.0002,2]
[363487326,1748737855982,-430.0,0.0002,2]
[363487327,1748737855994,-625.45,0.0002,2]
[363487328,1748737856004,-1312.01,0.0002,2]
[363487329,1748737856014,-430.0,0.0002,2]
[363487330,1748737856023,-556.89,0.0002,2]
[363487331,1748737856033,-430.0,0.0002,2]
[363487332,1748737856042,-430.0,0.0002,2]
[363487333,1748737856052,-1020.62,0.0002,2]
[363487334,1748737856063,-1880.35,0.0002,2]
[363487335,1748737856073,-430.0,0.0002,2]
[363487336,1748737856083,-1016.78,0.0002,2]
[363487337,1748737856094,-450.32,0.0002,2]
[363487338,1748737856104,-592.51,0.0002,2]
[363487339,1748737856115,-1891.02,0.0002,2]
[363487340,1748737856125,-1469.33,0.0002,2]
[363487341,1748737856135,-153.0,0.0002,2]
[363487342,1748737856145,-523.71,0.0002,2]
[363487343,1748737856156,-207.12,0.0002,2]
[363487344,1748737856167,-441.38,0.0002,2]
[363487345,1748737856178,-1867.23,0.0002,2]
[363487346,1748737856188,-695.28,0.0002,2]
[363487347,1748737856198,-880.32,0.0002,2]
[363487348,1748737856207,-536.832663,0.00020187,2]
[363487349,1748737856217,-1714.72675326,0.0002021,2]
[363487350,1748737856227,-4983.82,0.00020251,2]
[363487351,1748737856236,-430.0,0.00020273,2]
[363487352,1748737856248,-3040.12,0.00020273,2]
[363487353,1748737856258,-977.87,0.00020273,2]
[363487354,1748737856268,-2430.82,0.00020273,2]
[363487355,1748737856278,-549.88,0.00020273,2]
[363487356,1748737856288,-1508.0,0.00020273,2]
[363487357,1748737856298,-687.5,0.00020273,2]
[363487358,1748737856308,-1066.06,0.00020273,2]
[363487359,1748737856319,-151.0,0.00020273,2]
[363487360,1748737856329,-430.0,0.00020273,2]
[363487361,1748737856339,-3258.97,0.00020273,2]
[363487362,1748737856349,-256.3496,0.00020273,2]
[363487363,1748737856359,-430.0,0.00020273,2]
[363487364,1748737856369,-576.42,0.00020273,2]
[363487365,1748737856379,-580.05,0.00020273,2]
[363487366,1748737856389,-505.64,0.00020273,2]
[363487367,1748737856399,-430.0,0.00020273,2]
[363487368,1748737856409,-537.5,0.00020273,2]
[363487369,1748737856418,-430.0,0.00020273,2]
[363487370,1748737856428,-430.0,0.00020273,2]
[363487371,1748737856438,-567.0,0.00020273,2]
[363487372,1748737856448,-187.295091,0.00020273,2]
[363487373,1748737856458,-1008.06,0.00020273,2]
[363487374,1748737856468,-187.295091,0.00020273,2]
[363487375,1748737856479,-631.58,0.00020273,2]
[363487376,1748737856491,-430.0,0.00020273,2]
[363487377,1748737856501,-625.45,0.00020273,2]
[363487378,1748737856511,-1312.01,0.00020273,2]
[363487379,1748737856522,-370.8405883,0.00020273,2]
[363487380,1748737856536,-556.89,0.00020273,2]
[363487381,1748737856545,-430.0,0.00020273,2]
[363487382,1748737856555,-430.0,0.00020273,2]
[363487383,1748737856564,-1020.62,0.00020273,2]
[363487384,1748737856574,-1880.35,0.00020273,2]
[363487385,1748737856584,-430.0,0.00020273,2]
[363487386,1748737856594,-1016.78,0.00020273,2]
[363487387,1748737856604,-450.32,0.00020273,2]
[363487388,1748737856614,-592.51,0.00020273,2]
[363487389,1748737856624,-1891.02,0.00020273,2]
[363487390,1748737856634,-1469.33,0.00020273,2]
[363487391,1748737856643,-523.71,0.00020273,2]
[363487392,1748737856654,-441.38,0.00020273,2]
[363487393,1748737856663,-1867.23,0.00020273,2]
[363487394,1748737856673,-695.28,0.00020273,2]
[363487395,1748737856683,-880.32,0.00020273,2]
[363487396,1748737856817,-298.925904,0.00020273,2]
[363487397,1748737856827,-600.0,0.00020393,2]
[363487398,1748737856838,-500.0,0.00020393,2]
[363487399,1748737856847,-1714.72675326,0.00020486,3]
[363487400,1748737856858,-500.0,0.00020493,2]
[363487401,1748737856868,-500.0,0.00020493,2]
[363487402,1748737856877,-500.0,0.00020493,2]
[363487403,1748737856888,-500.86147166,0.00020493,2]
[363487404,1748737856897,-500.0,0.00020493,2]
[363487405,1748737856907,-500.0,0.00020493,2]
[363487406,1748737856917,-881.9731749,0.0002051,2]
[363487407,1748737856927,-430.0,0.00020547,2]
[363487408,1748737856937,-151.0,0.00020547,2]
[363487409,1748737856947,-3040.12,0.00020547,2]
[363487410,1748737856957,-977.87,0.00020547,2]
[363487411,1748737856967,-2430.82,0.00020547,2]
[363487412,1748737856977,-549.88,0.00020547,2]
[363487413,1748737856986,-1508.0,0.00020547,2]
[363487414,1748737856996,-687.5,0.00020547,2]
[363487415,1748737857005,-1066.06,0.00020547,2]
[363487416,1748737857015,-430.0,0.00020547,2]
[363487417,1748737857026,-3258.97,0.00020547,2]
[363487418,1748737857036,-245.928733,0.00020547,2]
[363487419,1748737857045,-245.928733,0.00020547,2]
[363487420,1748737857056,-430.0,0.00020547,2]
[363487421,1748737857065,-576.42,0.00020547,2]
[363487422,1748737857075,-580.05,0.00020547,2]
[363487423,1748737857085,-505.64,0.00020547,2]
[363487424,1748737857094,-430.0,0.00020547,2]
[363487425,1748737857104,-537.5,0.00020547,2]
[363487426,1748737857114,-510.43102726,0.00020547,2]
[363487427,1748737857124,-430.0,0.00020547,2]
[363487428,1748737857133,-567.0,0.00020547,2]
[363487429,1748737857143,-1008.06,0.00020547,2]
[363487430,1748737857153,-631.58,0.00020547,2]
[363487431,1748737857163,-625.45,0.00020547,2]
[363487432,1748737857173,-1312.01,0.00020547,2]
[363487433,1748737857182,-556.89,0.00020547,2]
[363487434,1748737857192,-430.0,0.00020547,2]
[363487435,1748737857202,-430.0,0.00020547,2]
[363487436,1748737857211,-1020.62,0.00020547,2]
[363487437,1748737857221,-1880.35,0.00020547,2]
[363487438,1748737857231,-430.0,0.00020547,2]
[363487439,1748737857242,-1016.78,0.00020547,2]
[363487440,1748737857251,-450.32,0.00020547,2]
[363487441,1748737857261,-592.51,0.00020547,2]
[363487442,1748737857271,-1891.02,0.00020547,2]
[363487443,1748737857281,-1469.33,0.00020547,2]
[363487444,1748737857291,-523.71,0.00020547,2]
[363487445,1748737857300,-441.38,0.00020547,2]
[363487446,1748737857311,-1867.23,0.00020547,2]
[363487447,1748737857321,-695.28,0.00020547,2]
[363487448,1748737857331,-880.32,0.00020547,2]
[363487449,1748737857341,-152.379212,0.00020548,2]
[363487450,1748737857351,-601.45,0.000206,2]
[363487451,1748737857361,-937.95,0.000206,2]
[363487452,1748737857371,-43340.06,0.000206,2]
[363487453,1748737857381,-598.642325,0.000206,2]
[363487454,1748737857390,-598.642325,0.000206,2]
[363487455,1748737857400,-361.63809,0.000206,2]
[363487456,1748737857410,-361.63809,0.000206,2]
[363487457,1748737857419,-8527.73,0.000206,2]
[363487458,1748737857429,-151.0,0.000206,2]
[363487459,1748737857439,-151.0,0.000206,2]
[363487460,1748737857448,-153.0,0.00020603,2]
[363487461,1748737857458,-153.0,0.00020603,2]
[363487462,1748737857468,-153.0,0.00020603,2]
[363487463,1748737857478,-153.0,0.00020603,2]
[363487464,1748737857488,-153.0,0.00020603,2]
[363487465,1748737857498,-500.0,0.00020681,2]
[363487466,1748737857507,-1714.72675326,0.00020762,3]
[363487467,1748737857517,-208.33151,0.00020821,2]
[363487468,1748737857528,-208.33151,0.00020821,2]
[363487469,1748737857538,-1441.904844,0.00020821,2]
[363487470,1748737857548,-1441.904844,0.00020821,2]
[363487471,1748737857558,-151.0,0.00020821,2]
[363487472,1748737857568,-151.0,0.00020821,2]
[363487473,1748737857578,-430.0,0.00020821,2]
[363487474,1748737857589,-1211.008584,0.00020821,2]
[363487475,1748737857598,-1211.008584,0.00020821,2]
[363487476,1748737857611,-229.835019,0.00020821,2]
[363487477,1748737857621,-229.835019,0.00020821,2]
[363487478,1748737857631,-151.0,0.00020821,2]
[363487479,1748737857641,-151.0,0.00020821,2]
[363487480,1748737857651,-182.755766,0.00020821,2]
[363487481,1748737857661,-182.755766,0.00020821,2]
[363487482,1748737857671,-3040.12,0.00020821,2]
[363487483,1748737857680,-977.87,0.00020821,2]
[363487484,1748737857690,-2430.82,0.00020821,2]
[363487485,1748737857700,-549.88,0.00020821,2]
[363487486,1748737857709,-1508.0,0.00020821,2]
[363487487,1748737857719,-687.5,0.00020821,2]
[363487488,1748737857729,-1066.06,0.00020821,2]
[363487489,1748737857739,-151.0,0.00020821,2]
[363487490,1748737857750,-430.0,0.00020821,2]
[363487491,1748737857759,-3258.97,0.00020821,2]
[363487492,1748737857769,-430.0,0.00020821,2]
[363487493,1748737857779,-576.42,0.00020821,2]
[363487494,1748737857788,-580.05,0.00020821,2]